Workbook

Sheet Sheet1
A1: WEIGHT PERCENT | E1: Raw Data NORMALIZED to sum to 100%
A3: WELL NAME | B3: Twist About Prospect - L Shafer PI-6
A4: JOB # | B4: 15-0202
A5: SAMPLE ID | B5: 1 | C5: 2 | D5: 3 | E5: 4 | F5: 5 | G5: 6 | H5: 7 | I5: 8 | J5: 9 | K5: 10 | L5: 11 | M5: 12 | N5: 13 | O5: 14 | P5: 15 | Q5: 16 | R5: 17 | S5: 18
A6: SAMPLE DEPTH | B6: 1961.00 | C6: 1965.20 | D6: 1966.40 | E6: 1968.40 | F6: 1974.00 | G6: 1978.50 | H6: 1982.90 | I6: 1984.80 | J6: 1985.50 | K6: 1990.60 | L6: 1993.60 | M6: 1999.30 | N6: 2003.50 | O6: 2004.50 | P6: 2005.85 | Q6: 2008.00 | R6: 2009.30 | S6: 2010.30
A8: NON-CLAY FRACTION
A9: Quartz | B9: 4.4239794 | C9: 18.64597182 | D9: 33.42959777 | E9: 78.5135403 | F9: 78.17314838 | G9: 76.31545635 | H9: 74.73087443 | I9: 49.44237157 | J9: 78.24468365 | K9: 56.45366082 | L9: 74.32871151 | M9: 73.46529534 | N9: 23.78022985 | O9: 73.23450604 | P9: 64.24257502 | Q9: 65.29406416 | R9: 67.52013979 | S9: 64.87271458
A10: K-Feldspar | B10: 0 | C10: 0.2006423678 | D10: 0.3584113771 | E10: 1.149660551 | F10: 1.027826613 | G10: 1.154269345 | H10: 1.589599626 | I10: 1.386898396 | J10: 1.472778329 | K10: 1.826633796 | L10: 1.21877291 | M10: 1.267849028 | N10: 0.2848437466 | O10: 0.7740937085 | P10: 0.9089018904 | Q10: 0.5226688639 | R10: 0.6766712519 | S10: 1.401718692
A11: Plagioclase | B11: 0 | C11: 0.4424339299 | D11: 1.247130987 | E11: 1.729182483 | F11: 2.552885272 | G11: 2.535619042 | H11: 2.828979406 | I11: 1.311488 | J11: 2.073950559 | K11: 1.712433235 | L11: 2.755001915 | M11: 1.92317913 | N11: 0 | O11: 1.792688266 | P11: 2.034925703 | Q11: 1.905245706 | R11: 2.215038902 | S11: 1.103410958
A12: Organic Carbon (TOC) | B12: 0 | C12: 0 | D12: 0 | E12: 0 | F12: 0 | G12: 0 | H12: 0.344 | I12: 0 | J12: 0 | K12: 0 | L12: 0 | M12: 0 | N12: 0 | O12: 0 | P12: 0 | Q12: 0 | R12: 0 | S12: 0
A13: Apatite | B13: 0 | C13: 0 | D13: 0 | E13: 0 | F13: 0 | G13: 0.3373413654 | H13: 0 | I13: 0.4593069633 | J13: 0 | K13: 0 | L13: 0 | M13: 0.4810102821 | N13: 0 | O13: 0 | P13: 1.193905327 | Q13: 0.8289110145 | R13: 0 | S13: 0
A14: Pyrite | B14: 0 | C14: 0 | D14: 0 | E14: 0 | F14: 0 | G14: 0 | H14: 0 | I14: 0.07027042391 | J14: 0 | K14: 0 | L14: 0 | M14: 0 | N14: 0 | O14: 0 | P14: 0 | Q14: 0 | R14: 0 | S14: 0
A15: Calcite | B15: 94.19657948 | C15: 0.6513083271 | D15: 0.7533165505 | E15: 0.3427246134 | F15: 0.4234653547 | G15: 0.4981840665 | H15: 0.1981014719 | I15: 23.77965943 | J15: 0.5189257856 | K15: 0.2978477419 | L15: 0.2977038141 | M15: 0.3349726318 | N15: 0 | O15: 0.2323971229 | P15: 0.213167108 | Q15: 0 | R15: 0.3063920438 | S15: 0
A16: Dolomite | B16: 1.379441121 | C16: 80.05964356 | D16: 50.70676916 | E16: 0.3253217332 | F16: 0 | G16: 0 | H16: 0 | I16: 8.97755019 | J16: 0 | K16: 18.40802084 | L16: 0.2742169554 | M16: 0 | N16: 0 | O16: 0 | P16: 3.582933723 | Q16: 8.808319559 | R16: 8.139569485 | S16: 0
A17: Siderite | B17: 0 | C17: 0 | D17: 9.19143505 | E17: 0.1597856035 | F17: 0.1504590747 | G17: 0.2050476207 | H17: 0 | I17: 2.442301062 | J17: 0.02612345306 | K17: 4.585437772 | L17: 0.2095412775 | M17: 0.6529426234 | N17: 0.04823678658 | O17: 0 | P17: 10.79096172 | Q17: 4.653367962 | R17: 1.407824491 | S17: 0
A18: TOTAL | B18: =SUM(B9:B17) -> 100 | C18: =SUM(C9:C17) -> 100 | D18: =SUM(D9:D17) -> 95.68666089 | E18: =SUM(E9:E17) -> 82.22021528 | F18: =SUM(F9:F17) -> 82.32778469 | G18: =SUM(G9:G17) -> 81.04591779 | H18: =SUM(H9:H17) -> 79.69155493 | I18: =SUM(I9:I17) -> 87.86984603 | J18: =SUM(J9:J17) -> 82.33646177 | K18: =SUM(K9:K17) -> 83.2840342 | L18: =SUM(L9:L17) -> 79.08394838 | M18: =SUM(M9:M17) -> 78.12524903 | N18: =SUM(N9:N17) -> 24.11331039 | O18: =SUM(O9:O17) -> 76.03368513 | P18: =SUM(P9:P17) -> 82.96737049 | Q18: =SUM(Q9:Q17) -> 82.01257727 | R18: =SUM(R9:R17) -> 80.26563597 | S18: =SUM(S9:S17) -> 67.37784423
A20: CLAY FRACTION
A21: Mixed-Layer ILLITE/SMECTITE (Includes R3) | B21: 0 | C21: 0 | D21: 0 | E21: 0.7966286632 | F21: 1.000388092 | G21: 0.8885865813 | H21: 1.185302131 | I21: 0.7746183425 | J21: 0.3678980811 | K21: 0.883594236 | L21: 0.5771656113 | M21: 1.20387246 | N21: 4.043059966 | O21: 1.277622471 | P21: 1.103787924 | Q21: 1.265026144 | R21: 1.269307647 | S21: 1.619649284
A22: Illite+Mica | B22: 0 | C22: 0 | D22: 2.892164188 | E22: 9.245319231 | F22: 10.2204732 | G22: 9.378029852 | H22: 9.900664608 | I22: 6.99669517 | J22: 9.107690069 | K22: 8.335751481 | L22: 10.54211861 | M22: 9.771805994 | N22: 56.23660733 | O22: 13.09291328 | P22: 9.053111839 | Q22: 10.09018903 | R22: 10.78273219 | S22: 18.64144552
A23: Chlorite | B23: 0 | C23: 0 | D23: 1.421174919 | E23: 7.737836822 | F23: 6.451354015 | G23: 7.231296162 | H23: 9.222478327 | I23: 3.005424025 | J23: 8.187950078 | K23: 5.980210728 | L23: 8.359388401 | M23: 8.891328398 | N23: 13.97884829 | O23: 8.713015742 | P23: 3.91954457 | Q23: 4.263135396 | R23: 5.60151843 | S23: 10.86452835
A24: Kaolinite | B24: 0 | C24: 0 | D24: 0 | E24: 0 | F24: 0 | G24: 1.456169612 | H24: 0 | I24: 1.35341643 | J24: 0 | K24: 1.516409352 | L24: 1.437378996 | M24: 2.007744117 | N24: 1.628174025 | O24: 0.8827633679 | P24: 2.956185178 | Q24: 2.369072162 | R24: 2.080805765 | S24: 1.496532613
A25: TOTAL | B25: =SUM(B21:B24) -> 0 | C25: =SUM(C21:C24) -> 0 | D25: =SUM(D21:D24) -> 4.313339107 | E25: =SUM(E21:E24) -> 17.77978472 | F25: =SUM(F21:F24) -> 17.67221531 | G25: =SUM(G21:G24) -> 18.95408221 | H25: =SUM(H21:H24) -> 20.30844507 | I25: =SUM(I21:I24) -> 12.13015397 | J25: =SUM(J21:J24) -> 17.66353823 | K25: =SUM(K21:K24) -> 16.7159658 | L25: =SUM(L21:L24) -> 20.91605162 | M25: =SUM(M21:M24) -> 21.87475097 | N25: =SUM(N21:N24) -> 75.88668961 | O25: =SUM(O21:O24) -> 23.96631487 | P25: =SUM(P21:P24) -> 17.03262951 | Q25: =SUM(Q21:Q24) -> 17.98742273 | R25: =SUM(R21:R24) -> 19.73436403 | S25: =SUM(S21:S24) -> 32.62215577
A27: GRAND TOTAL | B27: =B25+B18 -> 100 | C27: =C25+C18 -> 100 | D27: =D25+D18 -> 100 | E27: =E25+E18 -> 100 | F27: =F25+F18 -> 100 | G27: =G25+G18 -> 100 | H27: =H25+H18 -> 100 | I27: =I25+I18 -> 100 | J27: =J25+J18 -> 100 | K27: =K25+K18 -> 100 | L27: =L25+L18 -> 100 | M27: =M25+M18 -> 100 | N27: =N25+N18 -> 100 | O27: =O25+O18 -> 100 | P27: =P25+P18 -> 100 | Q27: =Q25+Q18 -> 100 | R27: =R25+R18 -> 100 | S27: =S25+S18 -> 100
A29: % Expandable Layers in I/S | B29: n/a | C29: n/a | D29: 20.00573523 | E29: 19.49928129 | F29: 20.59010516 | G29: 21.30595832 | H29: 21.98772324 | I29: 20.00573523 | J29: 20.76054639 | K29: 20.00573523 | L29: 20.14695796 | M29: 20.00573523 | N29: 15.74957423 | O29: 20.00573523 | P29: 20.00573523 | Q29: 20.00573523 | R29: 20.00573523 | S29: 20.00573523
A30: % I/S to Illite in <1.0um Fraction | B30: 0 | C30: 0 | D30: 14.17207713 | E30: 19.84518914 | F30: 16.81532636 | G30: 15.85482025 | H30: 18.83180736 | I30: 14.17207713 | J30: 7.844030173 | K30: 14.17207713 | L30: 9.655946868 | M30: 14.17207713 | N30: 10.35741979 | O30: 14.17207713 | P30: 14.17207713 | Q30: 14.17207713 | R30: 14.17207713 | S30: 14.17207713
A31: % Expandable I/S Layers in sample | B31: n/a | C31: n/a | D31: 0 | E31: 0.1553368639 | F31: 0.2059809602 | G31: 0.1893218867 | H31: 0.2615205829 | I31: 0.1549680946 | J31: 0.07637765179 | K31: 0.1767695233 | L31: 0.1162813131 | M31: 0.2408435368 | N31: 0.6367647304 | O31: 0.2555977688 | P31: 0.2208208895 | Q31: 0.2530777809 | R31: 0.2539343271 | S31: 0.3240227473
A33: % Fe in 1st/primary Dolomite/Ankerite | B33: 51.5801622 | C33: 46.6010882 | D33: 43.6136438 | I33: 27.1826996 | K33: 24.9421163 | P33: 25.19107 | Q33: 29.6722366 | R33: 28.6764218
A34: % Fe in 2nd Dolomite/Ankerite | I34: 82.9483284 | K34: 87.1805413 | P34: 90.6658931 | Q34: 93.1554301 | R34: 90.6658931
A36: Comments
A39: Many of the samples did not have enough resolution with normal XRD runs to determine
A40: clay expandability. For these samples, approximate average was used (highlighted in orange).
A42: Limited TOC data are available at time of analysis
